bitfinex-derivatives/quotes_SOLF0:USTF0_20250221
["timestamp","ask_amount","ask_price","bid_price","bid_amount"]
[1740151692983,1.14240018,175.07,174.89,45.5673625]
[1740151693282,45.5673625,174.98,174.76,45.5673625]
[1740151693482,45.5673625,174.93,174.77,2.3224]
[1740151693682,47.9530625,174.97,174.77,2.3224]
[1740151694084,0.04088129,174.87,174.83,0.04055978]
[1740151694478,45.5673625,174.89,174.77,2.3224]
[1740151694679,45.5673625,174.93,174.77,2.3224]
[1740151694877,0.04067082,174.87,174.83,0.04207414]
[1740151695680,7.082e-05,174.87,174.84,45.5673625]
[1740151695881,51.2786625,175.04,174.85,4.6683]
[1740151696083,45.5673625,174.96,174.83,0.04207414]
[1740151696287,45.5673625,174.96,174.78,2.412]
[1740151696487,45.5673625,174.96,174.79,2.4299]
[1740151696990,45.5673625,174.94,174.79,2.4299]
[1740151697291,2.356,174.95,174.79,2.4299]
[1740151697292,11.392,175.51,174.93,91.134725]
[1740151697587,2.356,175.33,175.25,45.5673625]
[1740151697788,4.7026,175.4,175.25,45.5673625]
[1740151697789,111.50048259,175.3,175.25,45.5673625]
[1740151697991,111.50048259,175.3,175.29,45.5673625]
[1740151698581,149.62,175.58,175.29,45.5673625]
[1740151698582,17.03,175.73,175.29,286.3220875]
[1740151698785,1.13817436,175.72,175.57,45.5673625]
[1740151699383,5.6904,175.68,175.57,45.5673625]
[1740151699594,1.13817436,175.72,175.57,45.5673625]
[1740151699991,0.03749178,175.64,175.61,0.03722687]
[1740151700387,45.5673625,175.62,174.91,879.68]
[1740151700594,45.5673625,175.53,175.34,45.5673625]
[1740151701197,45.5673625,175.53,175.42,0.03589622]
[1740151701391,0.04077589,175.45,175.42,0.03589622]
[1740151701589,0.04077589,175.45,175.3,45.5673625]
[1740151701894,45.5673625,175.57,175.42,0.04013332]
[1740151702194,2.311,175.59,175.43,45.5673625]
[1740151702402,0.03971044,175.51,175.43,45.5673625]
[1740151702688,0.03971044,175.51,175.49,0.04281244]
[1740151703103,0.03971044,175.51,175.47,45.5673625]
[1740151703497,45.5673625,175.67,175.48,0.03892174]
[1740151703693,45.5673625,175.67,175.51,45.5673625]
[1740151704195,47.9515625,175.71,175.55,45.5673625]
[1740151704589,1.13817436,175.72,175.59,45.5673625]
[1740151705093,0.04025717,175.65,175.61,0.04253544]
[1740151705493,0.04025717,175.65,175.59,45.5673625]
[1740151705694,0.04025717,175.65,175.63,45.5673625]
[1740151706194,2.3842,175.85,175.67,22.9014985]
[1740151706492,45.5673625,175.79,175.67,22.9014985]
[1740151706698,0.03727308,175.78,175.67,22.9014985]
[1740151706888,45.5673625,175.76,175.74,5.375e-05]
[1740151707294,5.6881,175.75,175.74,5.375e-05]
[1740151707493,2.3842,175.85,175.74,5.375e-05]
[1740151707691,45.5673625,175.81,175.74,5.375e-05]
[1740151707891,45.5673625,175.81,175.63,45.5673625]
[1740151708090,47.9515625,175.85,175.66,45.5673625]
[1740151708289,45.5673625,175.73,175.6,39.73437554]
[1740151708705,2.4316,175.72,175.6,39.73437554]
[1740151708993,0.03693223,175.68,175.65,0.03848699]
[1740151709399,45.5673625,175.76,175.6,39.73437554]
[1740151709599,45.5673625,175.72,175.6,39.73437554]
[1740151709795,0.04144582,175.68,175.65,0.04136497]
[1740151710794,25.17,175.67,175.65,0.04136497]
[1740151711201,25.11078043,175.67,175.65,0.04136497]
[1740151711896,5.6908,175.67,175.65,0.04136497]
[1740151712097,0.04144582,175.68,175.65,0.04136497]
[1740151712809,5.6907,175.67,175.65,0.04136497]
[1740151713103,0.04144582,175.68,175.65,0.04136497]
[1740151713298,5.6906,175.67,175.65,6.497e-05]
[1740151715503,5.6909,175.66,175.65,6.497e-05]
[1740151715803,5.6269071,175.66,175.65,6.497e-05]
[1740151716709,5.7277741,175.68,175.65,6.497e-05]
[1740151717008,0.0371741,175.68,175.65,6.497e-05]
[1740151718705,45.5673625,175.83,175.65,6.497e-05]
[1740151719106,45.5673625,175.83,175.64,2.6739]
[1740151719506,45.5673625,175.83,175.66,45.5673625]
[1740151719706,2.6867,175.85,175.69,45.5673625]
[1740151719912,0.04002929,175.75,175.72,0.03650242]
[1740151720217,45.5673625,175.83,175.72,0.03650242]
[1740151720418,0.04358529,175.75,175.66,45.5673625]
[1740151720812,45.5673625,175.83,175.66,45.5673625]
[1740151721012,45.5673625,175.83,175.64,2.6739]
[1740151721013,45.5673625,175.79,175.69,0.04236322]
[1740151721213,0.03844067,175.72,175.69,0.04236322]
[1740151721419,45.5673625,175.76,175.59,45.5673625]
[1740151721618,45.5673625,175.8,175.69,0.03738864]
[1740151721916,5.6904,175.68,175.59,45.5673625]
[1740151722121,45.5673625,175.76,175.59,45.5673625]
[1740151722421,45.60868668,175.76,175.59,45.5673625]
[1740151722711,45.5673625,175.72,175.51,5.4593]
[1740151722916,45.5673625,175.68,175.51,5.4593]
[1740151723113,2.7277,175.75,175.53,45.5673625]
[1740151723321,45.5673625,175.73,175.57,45.5673625]
[1740151723520,5.6919,175.63,175.62,6.114e-05]
[1740151724019,45.5673625,175.71,175.52,45.5673625]
[1740151724224,45.5673625,175.67,175.51,2.804]
[1740151724518,2.7279,175.66,175.51,2.804]
[1740151724909,2.7279,175.66,175.43,2.5764]
[1740151724910,0.03825288,175.61,175.57,0.04361807]
[1740151725122,0.03825288,175.61,175.57,1.807e-05]
[1740151725316,45.5673625,175.61,175.44,2.7654]
[1740151725514,45.5673625,175.61,175.45,45.5673625]
[1740151725821,2.7279,175.66,175.48,45.5673625]
[1740151726015,2.7279,175.66,175.51,45.5673625]
[1740151726217,0.04328177,175.59,175.55,0.04357786]
[1740151726416,2.8078,175.79,175.58,45.5673625]
[1740151726617,2.8078,175.79,175.63,45.5673625]
[1740151726916,45.5673625,175.77,175.6,45.5673625]
[1740151727113,45.5673625,175.74,175.59,2.7594]
[1740151727814,45.60468631,175.68,175.65,7.242e-05]
[1740151728016,5.6909,175.66,175.65,7.242e-05]
[1740151728212,45.5673625,175.68,175.51,45.5673625]
[1740151728418,45.5673625,175.71,175.51,45.5673625]
[1740151728618,45.5673625,175.72,175.54,45.5673625]
[1740151729221,0.03907353,175.65,175.61,0.04331163]
[1740151729617,2.8247,175.68,175.51,45.5673625]
[1740151729921,2.8247,175.68,175.44,149.1]
[1740151729922,0.03898063,175.65,175.61,0.04377672]
[1740151730314,48.3920625,175.77,175.57,45.5673625]
[1740151730518,0.03888755,175.65,175.61,0.03826293]
[1740151730716,5.6922,175.62,175.61,0.03826293]
[1740151730919,45.5673625,175.69,175.53,45.5673625]
[1740151731221,5.6928,175.61,175.6,0.0399745]
[1740151731623,45.5673625,175.69,175.49,45.5673625]
[1740151731819,0.04176785,175.62,175.59,0.03924457]
[1740151732217,5.6929,175.6,175.59,0.03924457]
[1740151733715,0.04111842,175.62,175.59,0.03924457]
[1740151734425,5.6929,175.6,175.59,0.03924457]
[1740151734625,0.04111842,175.62,175.59,0.03924457]
[1740151735426,5.6929,175.6,175.59,0.03924457]
[1740151735622,0.04111842,175.62,175.59,0.03924457]
[1740151735824,184.41010134,175.8,175.59,45.60660707]
[1740151736028,184.41010134,175.8,175.63,45.5673625]
[1740151736725,184.41010134,175.76,175.63,45.5673625]
[1740151736925,184.41010134,175.76,175.6,5.3605]
[1740151737123,0.0371974,175.73,175.7,7.097e-05]
[1740151737322,0.0371974,175.73,175.6,5.3605]
[1740151738723,2.792,175.75,175.59,45.5673625]
[1740151738927,0.03646288,175.69,175.66,6.417e-05]
[1740151739329,5.6906,175.67,175.66,6.417e-05]
[1740151740120,51.20606648,175.67,175.66,6.417e-05]
[1740151740625,45.51546648,175.67,175.44,194.61546648]
[1740151740822,45.51546648,175.62,175.44,194.61546648]
[1740151741026,2.8473,175.61,175.44,194.61546648]
[1740151741226,11.377,175.74,175.5,45.51546648]
[1740151741431,48.36276648,175.73,175.56,45.51546648]
[1740151741831,0.04267541,175.66,175.63,0.04345551]
[1740151742127,5.3187,175.79,175.63,0.04345551]
[1740151742332,5.6886,175.74,175.67,45.51546648]
[1740151742533,184.41010134,175.78,175.72,45.51546648]
[1740151742827,5.72930343,175.73,175.72,45.51546648]
[1740151743134,0.04149704,175.77,175.72,45.51546648]
[1740151743325,0.04149704,175.77,175.75,45.51546648]
[1740151743528,182.26619838,175.78,175.75,45.51546648]
[1740151743730,5.2995,175.92,175.75,45.51546648]
[1740151743931,2.8281,175.91,175.78,45.51546648]
[1740151744125,48.34356648,175.91,175.72,45.51546648]
[1740151744326,45.51546648,175.85,175.66,45.51546648]
[1740151744528,45.51546648,175.79,175.64,2.8228]
[1740151744736,0.04308498,175.77,175.74,3.798e-05]
[1740151745033,5.405,175.78,175.63,45.51546648]
[1740151745333,5.405,175.78,175.56,2.6075]
[1740151745334,2.7461,175.78,175.69,45.51546648]
[1740151745829,5.405,175.87,175.72,45.51546648]
[1740151746029,0.04061774,175.75,175.72,0.03626432]
[1740151746226,45.46015052,175.85,175.78,8.165e-05]
[1740151746429,45.46015052,175.79,175.62,45.46015052]
[1740151747035,45.46015052,175.76,175.56,48.06765052]
[1740151747237,5.6931,175.6,175.56,48.06765052]
[1740151747431,45.46015052,175.73,175.64,0.0388341]
[1740151747730,45.46015052,175.73,175.56,48.06765052]
[1740151747932,45.46015052,175.73,175.58,22.41492401]
[1740151748334,5.405,175.75,175.58,22.41492401]
[1740151748335,5.6932,175.59,175.58,22.41492401]
[1740151748728,5.6932,175.59,175.58,13.86772401]
[1740151748933,5.6932,175.59,175.58,5.13982401]
[1740151749736,5.6935,175.58,175.57,0.04350857]
[1740151750337,5.6935,175.58,175.57,8.57e-06]
[1740151752941,0.04374969,175.6,175.57,8.57e-06]
[1740151753133,0.04374969,175.6,175.58,5.6934]
[1740151753334,2.8778,175.74,175.57,45.46015909]
[1740151753535,2.8778,175.74,175.61,45.46015052]
[1740151753730,2.8778,175.74,175.58,45.46015052]
[1740151754040,45.46015052,175.7,175.52,45.46015052]
[1740151754236,2.8778,175.74,175.58,45.46015052]
[1740151754440,149.04,175.82,175.52,45.46015052]
[1740151754441,45.46015052,175.85,175.67,45.46015052]
[1740151754636,5.689,175.73,175.67,45.46015052]
[1740151754829,45.46015052,175.88,175.61,2.8495]
[1740151755030,45.46015052,175.88,175.71,45.46015052]
[1740151755235,8.092,175.89,175.77,45.46015052]
[1740151755236,2.7273,175.89,175.77,45.46015052]
[1740151755441,45.46015052,175.94,175.77,45.46015052]
[1740151755740,45.46015052,175.91,175.77,45.46015052]
[1740151755935,45.46015052,175.91,175.74,45.46015052]
[1740151756143,0.04116625,175.86,175.82,0.03697466]
[1740151756436,5.6851,175.84,175.82,0.03697466]
[1740151756637,0.04116625,175.86,175.82,0.03697466]
[1740151758450,0.04116625,175.86,175.82,7.466e-05]
[1740151758744,5.6854,175.83,175.82,7.466e-05]
[1740151760239,48.06565052,175.85,175.65,45.46015052]
[1740151760445,45.46015052,175.81,175.65,45.46015052]
[1740151760645,45.46015052,175.84,175.68,45.46015052]
[1740151760945,45.46015052,175.84,175.62,2.7431]
[1740151760946,45.46015052,175.81,175.63,45.46015052]
[1740151761442,0.03934834,175.74,175.7,5.2e-05]
[1740151761843,45.46015052,175.78,175.61,2.8495]
[1740151762043,45.46015052,175.78,175.62,45.46015052]
[1740151762242,45.46015052,175.81,175.62,45.46015052]
[1740151762438,45.46015052,175.77,175.59,45.46015052]
[1740151762642,0.03857242,175.73,175.7,0.03630309]
[1740151762950,5.691,175.66,175.59,51.15335052]
[1740151763246,45.46015052,175.77,175.59,45.46015052]
[1740151763440,45.46015052,175.8,175.64,5.6916]
[1740151763640,45.46015052,175.8,175.65,45.46015052]
[1740151763838,0.03588127,175.74,175.71,0.03971212]
[1740151764640,5.689,175.72,175.71,1.212e-05]
[1740151765046,5.69,175.69,175.63,5.6919]
[1740151765241,21.47998788,175.71,175.62,45.46015052]
[1740151765445,21.47998788,175.71,175.68,45.46015052]
[1740151765644,21.47998788,175.71,175.69,5.6898]
[1740151765844,21.47998788,175.71,175.68,45.46015052]
[1740151766044,45.46015052,175.8,175.63,5.6077]
[1740151766249,0.04092644,175.71,175.68,45.49145288]
[1740151766449,48.06195052,175.83,175.68,45.46015052]
[1740151766749,0.03737177,175.71,175.69,5.6897]
[1740151767047,2.6018,175.83,175.68,45.46015052]
[1740151767240,0.04015624,175.72,175.68,45.49145288]
[1740151767549,0.04165494,175.77,175.68,0.03130236]
[1740151767748,2.6018,175.83,175.68,45.49145288]
[1740151768051,0.03810477,175.74,175.68,45.46015052]
[1740151768243,0.03810477,175.74,175.71,5.6891]
[1740151768441,2.6018,175.83,175.71,45.46015052]
[1740151768645,2.6018,175.83,175.74,45.46015052]
[1740151768944,2.6018,175.83,175.71,45.46015052]
[1740151769348,45.46015052,175.91,175.74,45.46015052]
[1740151769653,2.8345,175.9,175.74,45.46015052]
[1740151769851,0.03982465,175.84,175.81,0.04298658]
[1740151770446,5.6854,175.83,175.81,0.04298658]
[1740151770848,5.6858,175.82,175.81,8.658e-05]
[1740151771157,51.14595052,175.82,175.81,8.658e-05]
[1740151771451,45.46015052,175.82,175.65,45.46015052]
[1740151771645,45.46015052,175.79,175.63,2.874]
[1740151771845,2.6908,175.78,175.63,2.874]
[1740151772253,45.46015052,175.76,175.63,2.874]
[1740151772751,0.03995824,175.71,175.68,0.02642055]
[1740151773654,2.7632,175.85,175.7,5.6896]
[1740151773853,5.6877,175.76,175.67,45.46015052]
[1740151774054,5.454,175.85,175.67,45.46015052]
[1740151774456,5.6873,175.78,175.7,45.46015052]
[1740151774655,5.454,175.85,175.73,45.46015052]
[1740151775058,0.03989638,175.76,175.73,45.46015052]
[1740151775261,50.91415052,175.85,175.68,5.69]
[1740151775562,0.04221769,175.76,175.73,0.03937203]
[1740151775858,45.46015052,175.79,175.63,2.874]
[1740151776555,5.689,175.73,175.64,45.46015052]
[1740151776959,0.0415816,175.7,175.67,0.02707879]
[1740151777154,5.689,175.73,175.64,45.46015052]
[1740151777358,5.454,175.85,175.7,45.46015052]
[1740151777855,5.6881,175.75,175.7,45.46015052]
[1740151778156,45.46015052,175.89,175.73,45.46015052]
[1740151778357,0.04362267,175.74,175.73,45.46015052]
[1740151778551,48.07815052,175.89,175.73,51.14885052]
[1740151778756,5.6881,175.75,175.67,45.46015052]
[1740151778957,45.46015052,175.86,175.67,45.46015052]
[1740151779654,0.035995,175.78,175.75,0.0365989]
[1740151779958,45.46015052,175.86,175.67,45.46015052]
[1740151780156,0.0419204,175.78,175.75,0.03878593]
[1740151780459,45.46015052,175.8,175.64,45.46015052]
[1740151780660,45.46015052,175.8,175.67,5.6906]
[1740151780859,45.46015052,175.8,175.64,45.46015052]
[1740151781255,45.46015052,175.8,175.67,5.6906]
[1740151781461,45.46015052,175.8,175.64,45.46015052]
[1740151781762,0.03616018,175.75,175.72,1.46e-06]
[1740151783258,2.7315,175.85,175.72,1.46e-06]
[1740151783450,2.7315,175.85,175.7,45.46015052]
[1740151783655,2.7315,175.85,175.75,5.6879]
[1740151783851,45.46015052,175.87,175.7,45.46015052]
[1740151784159,5.6864,175.81,175.75,5.688]
[1740151784357,0.04104035,175.8,175.77,0.03616164]
[1740151784660,45.46015052,175.87,175.77,0.03616164]
[1740151784857,0.03734521,175.8,175.77,0.03616164]
[1740151785059,0.04306017,175.8,175.77,0.03616164]
[1740151785360,5.6871,175.78,175.77,6.164e-05]
[1740151787251,5.6868,175.79,175.77,6.164e-05]
[1740151787453,0.04306017,175.8,175.77,6.164e-05]
[1740151788459,5.6867,175.79,175.77,6.164e-05]
[1740151788865,0.04306017,175.8,175.77,6.164e-05]
[1740151789261,2.8906,175.93,175.77,6.164e-05]
[1740151789565,2.8906,175.93,175.76,45.46015052]
[1740151789566,48.35075052,175.93,175.76,45.46015052]
[1740151789764,2.8906,175.93,175.79,45.46015052]
[1740151790165,2.8906,175.93,175.83,5.6854]
[1740151790364,2.8906,175.93,175.79,45.46015052]
[1740151790566,0.03943834,175.9,175.86,0.04074272]
[1740151791065,5.6841,175.87,175.86,4.272e-05]
[1740151791268,0.03943834,175.9,175.79,5.6864]
[1740151791457,5.6845,175.86,175.79,45.46015052]
[1740151791664,2.8906,175.93,175.79,45.46015052]
[1740151791966,2.8906,175.93,175.77,2.6624]
[1740151791967,5.6862,175.81,175.77,2.6624]
[1740151792268,45.46015052,175.9,175.77,8.3495]
[1740151792761,0.04339712,175.85,175.77,2.6624]
[1740151792961,0.04339712,175.85,175.78,45.46015052]
[1740151793166,0.04339712,175.85,175.81,45.46015052]
[1740151793368,48.27845052,175.99,175.81,45.46015052]
[1740151793568,48.27845052,175.99,175.84,5.6848]
[1740151794061,48.27845052,175.99,175.81,45.46015052]
[1740151794458,0.0425326,175.91,175.88,3.862e-05]
[1740151794661,5.6835,175.89,175.88,3.862e-05]
[1740151796163,2.7741,175.89,175.71,2.6893]
[1740151796363,45.46015052,175.86,175.72,5.689]
[1740151796665,45.46015052,175.86,175.69,45.46015052]
[1740151796863,45.46015052,175.83,175.66,105.23328121]
[1740151797463,45.46015052,175.83,175.67,5.6906]
[1740151797464,0.03835249,175.77,175.67,5.6906]
[1740151797764,0.03835249,175.77,175.66,45.46015052]
[1740151797964,45.46015052,175.83,175.66,45.46015052]
[1740151798168,45.46015052,175.83,175.66,51.15105052]
[1740151798369,5.6896,175.71,175.66,45.46015052]
[1740151798575,0.03733054,175.73,175.66,45.46015052]
[1740151799062,5.72623054,175.73,175.66,45.46015052]
[1740151799267,0.03733054,175.73,175.68,5.6902]
[1740151799871,0.03733054,175.73,175.66,45.46015052]
[1740151800367,0.03733054,175.73,175.61,3.2611]
[1740151800871,0.03663874,175.69,175.54,45.46015052]
[1740151801267,45.46015052,175.74,175.57,45.46015052]
[1740151801470,0.04318233,175.63,175.62,5.692]
[1740151801671,3.2991,175.75,175.6,45.46015052]
[1740151801877,3.2991,175.75,175.63,45.46015052]
[1740151802168,198.5482,175.76,175.6,45.46015052]
[1740151802369,45.46015052,175.73,175.57,45.46015052]
[1740151802564,45.46015052,175.67,175.52,3.2611]
[1740151802766,3.1212,175.66,175.52,3.2611]
[1740151803163,3.1212,175.66,175.57,0.03983123]
[1740151803363,0.04281631,175.61,175.6,45.46015052]
[1740151803576,3.1212,175.74,175.6,45.46015052]
[1740151803768,193.0,175.75,175.63,45.46015052]
[1740151804074,45.46015052,175.73,175.57,45.46015052]
[1740151804274,45.46015052,175.7,175.52,3.2611]
[1740151804471,5.6946,175.55,175.52,3.2611]
[1740151804769,0.03785427,175.63,175.59,6.763e-05]
[1740151804973,5.6929,175.6,175.54,5.6947]
[1740151805172,3.1212,175.66,175.52,3.2611]
[1740151805368,45.46015052,175.65,175.48,48.22285052]
[1740151805671,45.46015052,175.62,175.48,45.46015052]
[1740151806079,0.04243448,175.57,175.53,0.03850586]
[1740151806467,45.46015052,175.62,175.45,45.46015052]
[1740151806673,5.6948,175.54,175.53,0.03641043]
[1740151807073,5.6948,175.54,175.53,1.043e-05]
[1740151807973,244.81715052,175.56,175.38,0.80076944]
[1740151808172,45.46015052,175.51,175.36,14.89304661]
[1740151808574,45.46015052,175.51,175.36,9.19264661]
[1740151808777,45.46015052,175.48,175.36,7.87124661]
[1740151809377,0.03866735,175.44,175.36,7.87124661]
[1740151809682,0.03866735,175.44,175.31,48.55655052]
[1740151810073,0.03904606,175.39,175.31,45.46015052]
[1740151810281,0.03904606,175.39,175.28,45.46015052]
[1740151810781,0.03724335,175.35,175.31,45.46015052]
[1740151811180,3.306,175.44,175.31,45.46015052]
[1740151811379,0.04177113,175.35,175.31,45.46015052]
[1740151811579,3.306,175.44,175.28,45.46015052]
[1740151811880,0.04001214,175.35,175.3,5.7025]
[1740151812078,0.04001214,175.35,175.28,45.46015052]
[1740151812279,5.7015,175.34,175.25,51.16425052]
[1740151812576,0.04355521,175.33,175.25,45.46015052]
[1740151812777,0.04355521,175.33,175.24,3.0964]
[1740151813378,5.7037,175.27,175.19,52.49045052]
[1740151813778,3.0896,175.32,175.15,3.2033]
[1740151813977,3.0896,175.32,175.17,45.46015052]
[1740151814183,0.03988291,175.25,175.15,3.2033]
[1740151814484,5.7056,175.21,175.15,3.2033]
[1740151814679,0.03988291,175.25,175.14,45.46015052]
[1740151814879,45.46015052,175.28,175.11,3.0444]
[1740151814880,45.46015052,175.28,175.11,48.50455052]
[1740151815082,5.7059,175.2,175.13,5.7081]
[1740151815282,0.03903131,175.21,175.11,48.50455052]
[1740151815480,0.03903131,175.21,175.13,5.7081]
[1740151815680,37.43253324,175.28,175.11,40.47693324]
[1740151815880,37.43253324,175.25,175.11,37.43253324]
[1740151816180,37.43253324,175.25,175.08,4.5307]
[1740151816181,0.04283719,175.19,175.08,41.96323324]
[1740151816381,0.04283719,175.19,175.08,37.43253324]
[1740151816577,37.43253324,175.25,175.08,37.43253324]
[1740151816774,0.03702608,175.15,175.08,37.43253324]
[1740151817084,0.03702608,175.15,175.05,37.43253324]
[1740151817284,3.2869,175.18,175.02,37.43253324]
[1740151817579,0.03657147,175.12,175.02,37.43253324]
[1740151817975,0.03657147,175.12,175.05,37.43253324]
[1740151818180,0.03657147,175.12,175.08,37.43253324]
[1740151818379,37.43253324,175.25,175.08,37.43253324]
[1740151818676,3.2298,175.24,175.14,37.43253324]
[1740151818880,40.55033324,175.31,175.14,37.43253324]
[1740151819079,37.43253324,175.28,175.12,5.7085]
[1740151819283,37.43253324,175.28,175.11,37.43253324]
[1740151819983,0.03640787,175.21,175.17,0.04256838]
[1740151820681,5.7065,175.18,175.17,6.838e-05]
[1740151821281,9.0454,175.2,175.17,6.838e-05]
[1740151821576,3.3392,175.2,175.17,6.838e-05]
[1740151821986,5.7065,175.18,175.17,6.838e-05]
[1740151824994,11.26,175.18,174.99,40.74803324]
[1740151825181,37.43253324,175.14,174.99,3.3155]
[1740151825386,6.2603,175.13,175.01,5.7121]
[1740151825782,193.0,175.17,175.02,37.43253324]
[1740151825988,5.7098,175.09,175.02,37.43253324]
[1740151826291,193.0,175.17,175.02,37.43253324]
[1740151826292,0.03689693,175.11,175.02,37.43253324]
[1740151826488,230.43253324,175.17,174.99,40.74803324]
[1740151826882,0.03911458,175.08,174.99,40.74803324]
[1740151827089,0.03911458,175.08,175.02,37.43253324]
[1740151827291,0.03911458,175.08,175.05,37.43253324]
[1740151827589,0.03911458,175.08,175.05,43.14303324]
[1740151827790,0.03911458,175.08,175.02,37.43253324]
[1740151829089,0.03911458,175.08,175.05,5.7105]
[1740151829389,0.03911458,175.08,175.02,37.43253324]
[1740151829592,3.0845,175.19,175.05,37.43253324]
[1740151830396,5.708,175.14,175.05,37.43253324]
[1740151830691,3.0845,175.19,175.07,37.43253324]
[1740151830889,0.03932788,175.11,175.08,0.04053014]
[1740151831286,3.3392,175.2,175.05,37.43253324]
[1740151831490,40.77173324,175.2,175.02,37.43253324]
[1740151831688,0.03670248,175.11,175.08,0.04030862]
[1740151832098,40.77173324,175.2,175.02,37.43253324]
[1740151832289,37.43253324,175.17,175.08,0.04392579]
[1740151832496,0.04375524,175.11,175.08,0.04392579]
[1740151832694,0.04375524,175.11,174.99,40.74803324]
[1740151833095,37.43253324,175.17,175.08,0.03962071]
[1740151833293,0.03975146,175.07,174.99,40.74803324]
[1740151833897,0.03975146,175.07,175.01,0.0375872]
[1740151834498,0.03975146,175.07,175.06,5.7104]
[1740151834698,0.03975146,175.07,175.02,37.43253324]
[1740151835198,0.03975146,175.07,175.06,5.7104]
[1740151835595,37.43253324,175.23,175.03,0.03713458]
[1740151835799,37.43253324,175.23,175.09,37.43253324]
[1740151836109,37.43253324,175.17,175.02,37.43253324]
[1740151836302,3.6508,175.16,175.02,37.43253324]
[1740151836804,3.6508,175.16,175.04,5.711]
[1740151837102,0.03825528,175.11,175.07,0.03849272]
[1740151838697,5.7098,175.08,175.07,0.03849272]
[1740151839197,0.03825528,175.11,175.07,0.03849272]
[1740151839798,0.03825528,175.11,175.08,5.7097]
[1740151840101,0.03825528,175.11,175.07,0.03849272]
[1740151840901,11.08,175.23,175.07,0.03849272]
[1740151841102,37.43253324,175.23,175.07,0.03849272]
[1740151841303,5.7078,175.15,175.06,2.4615]
[1740151841507,37.43253324,175.23,175.06,2.4615]
[1740151842107,3.6058,175.27,175.08,37.43253324]
[1740151842306,0.04072675,175.16,175.15,5.7074]
[1740151842502,3.6058,175.27,175.14,37.43253324]
[1740151843001,5.7052,175.23,175.18,5.7062]
[1740151843201,3.6058,175.27,175.18,5.7062]
[1740151843402,3.6058,175.27,175.11,37.43253324]
[1740151843802,0.04068198,175.24,175.21,0.04201057]
[1740151844110,0.04068198,175.24,175.11,37.43253324]
[1740151844302,0.04068198,175.24,175.21,5.229e-05]
[1740151844511,5.7091,175.11,175.07,7.64108673]
[1740151844701,37.43253324,175.16,175.07,7.64108673]
[1740151845007,5.7089,175.11,175.07,7.64108673]
[1740151845203,3.4135,175.15,175.07,7.64108673]
[1740151845700,0.04211195,175.13,175.09,0.04237627]
[1740151846107,5.7091,175.1,175.09,7.627e-05]
[1740151847799,0.04211195,175.13,175.09,7.627e-05]
[1740151849709,3.6497,175.21,175.09,7.627e-05]
[1740151850208,37.43253324,175.19,175.06,2.4627]
[1740151850510,5.7088,175.11,175.06,2.4627]
[1740151850710,3.6497,175.21,175.02,45.07361997]
[1740151850711,37.43253324,175.16,175.02,45.07361997]
[1740151850910,37.43253324,175.16,175.1,57.02608293]
[1740151851111,5.74853125,175.11,175.1,57.02608293]
[1740151851308,5.7088,175.11,175.1,57.02608293]
[1740151852607,5.7091,175.1,175.09,0.03878332]
[1740151853203,5.75020387,175.12,175.09,0.03878332]
[1740151853405,0.04160387,175.12,175.09,0.03878332]
[1740151855706,3.6497,175.21,175.09,0.03878332]
[1740151855903,3.6497,175.21,175.07,5.41009695]
[1740151856512,5.7084,175.13,175.07,5.41009695]
[1740151856712,3.6497,175.21,175.07,5.41009695]
[1740151856713,0.04111204,175.16,175.12,0.03717125]
[1740151856914,3.6497,175.21,175.07,5.41009695]
[1740151857110,5.7091,175.11,175.07,5.41009695]
[1740151857307,0.03629033,175.16,175.12,0.03736049]
[1740151857511,5.7072,175.17,175.07,5.41009695]
[1740151857710,0.03637132,175.16,175.07,5.41009695]
[1740151857912,0.03637132,175.16,175.12,0.04338718]
[1740151858915,5.7082,175.13,175.12,8.718e-05]
[1740151861120,9.3286,175.13,175.12,8.718e-05]
[1740151862215,3.6204,175.13,175.04,44.57206234]
[1740151862618,5.7088,175.11,175.02,37.43253324]
[1740151862819,10.20293718,175.15,175.05,37.43253324]
[1740151863229,5.7089,175.11,175.08,0.0387449]
[1740151863521,0.04069611,175.12,175.08,0.0387449]
[1740151863919,37.43253324,175.1,174.98,22.92326019]
[1740151864120,37.43253324,175.07,174.98,22.92326019]
[1740151864423,37.43253324,175.04,175.01,42.34075405]
[1740151864621,37.43253324,175.04,175.0,84.06349604]
[1740151864819,5.7121,175.01,175.0,84.06349604]
[1740151865013,37.43253324,175.01,174.98,6.92938312]
[1740151865218,37.43253324,175.01,174.97,222.08521375]
[1740151865219,37.43253324,175.0,174.97,5.73268303]
[1740151865420,5.7131,174.98,174.97,8.303e-05]
[1740151865821,43.14753324,174.92,174.91,261.50384332]
[1740151866020,37.43253324,174.92,174.91,261.50384332]
[1740151866318,37.43253324,174.95,174.9,0.04042633]
[1740151866516,5.715,174.92,174.9,0.04042633]